[Event "Titled Tuesday Blitz November 29 Early 2022"]
[White "Manelyuk, Daniil"]
[Black "Remizov, Yaroslav"]
[WhiteFideId "44173920"]
[BlackFideId "34134015"]
[WhiteElo "2209"]
[BlackElo "2414"]
[Result "0-1"]
[Round "04"]
[TimeControl "180+1"]
[Date "2022.11.30"]
[WhiteClock "0:00:10"]
[BlackClock "0:00:07"]

1. e4 {[%clk 0:03:00]}  e6 {[%clk 0:02:58]} 2. d4 {[%clk 0:03:00]}  d5 {[%clk 0:02:58]} 3. Nd2 {[%clk 0:03:00]}  c5 {[%clk 0:02:56]} 4. exd5 {[%clk 0:03:00]}  Qxd5 {[%clk 0:02:54]} 5. Ngf3 {[%clk 0:03:00]}  cxd4 {[%clk 0:02:54]} 6. Bc4 {[%clk 0:03:01]}  Qd7 {[%clk 0:02:54]} 7. O-O {[%clk 0:03:01]}  Nf6 {[%clk 0:02:52]} 8. Nb3 {[%clk 0:03:00]}  Nc6 {[%clk 0:02:47]} 9. Nbxd4 {[%clk 0:03:00]}  Nxd4 {[%clk 0:02:44]} 10. Nxd4 {[%clk 0:03:00]}  a6 {[%clk 0:02:44]} 11. Re1 {[%clk 0:02:59]}  Be7 {[%clk 0:02:43]} 12. c3 {[%clk 0:02:54]}  b5 {[%clk 0:02:39]} 13. Bb3 {[%clk 0:02:49]}  Bb7 {[%clk 0:02:29]} 14. Qe2 {[%clk 0:02:46]}  Bd5 {[%clk 0:02:20]} 15. Bg5 {[%clk 0:02:26]}  Bxb3 {[%clk 0:02:17]} 16. axb3 {[%clk 0:02:26]}  O-O {[%clk 0:02:15]} 17. Nf5 {[%clk 0:02:10]}  Bd8 {[%clk 0:01:52]} 18. Rad1 {[%clk 0:02:03]}  Qc7 {[%clk 0:01:50]} 19. Rxd8 {[%clk 0:01:46]}  Qxd8 {[%clk 0:01:31]} 20. Rd1 {[%clk 0:01:43]}  Qc7 {[%clk 0:01:28]} 21. Nh6+ {[%clk 0:00:17]}  Kh8 {[%clk 0:01:27]} 22. Bxf6 {[%clk 0:00:16]}  gxf6 {[%clk 0:01:26]} 23. Qf3 {[%clk 0:00:16]}  f5 {[%clk 0:01:10]} 24. g4 {[%clk 0:00:09]}  Rad8 {[%clk 0:01:04]} 25. gxf5 {[%clk 0:00:08]}  Rxd1+ {[%clk 0:01:02]} 26. Qxd1 {[%clk 0:00:08]}  Qe5 {[%clk 0:00:54]} 27. Kh1 {[%clk 0:00:02]}  Qe4+ {[%clk 0:00:52]} 28. f3 {[%clk 0:00:02]}  Qe5 {[%clk 0:00:49]} 29. fxe6 {[%clk 0:00:02]}  fxe6 {[%clk 0:00:46]} 30. Ng4 {[%clk 0:00:03]}  Qf4 {[%clk 0:00:44]} 31. Kg2 {[%clk 0:00:03]}  h5 {[%clk 0:00:43]} 32. Nf2 {[%clk 0:00:03]}  Rg8+ {[%clk 0:00:43]} 33. Kf1 {[%clk 0:00:03]}  Qxh2 {[%clk 0:00:37]} 34. Qd4+ {[%clk 0:00:02]}  e5 {[%clk 0:00:38]} 35. Qe4 {[%clk 0:00:02]}  Qf4 {[%clk 0:00:36]} 36. Qd5 {[%clk 0:00:02]}  Rf8 {[%clk 0:00:33]} 37. Ke2 {[%clk 0:00:01]}  Qf5 {[%clk 0:00:22]} 38. Qc6 {[%clk 0:00:02]}  Qf6 {[%clk 0:00:16]} 39. Qc5 {[%clk 0:00:01]}  Qxf3+ {[%clk 0:00:16]} 40. Ke1 {[%clk 0:00:02]}  Qf4 {[%clk 0:00:09]} 41. Qd6 {[%clk 0:00:02]}  Qxf2+ {[%clk 0:00:08]} 42. Kd1 {[%clk 0:00:02]}  Qf3+ {[%clk 0:00:08]} 43. Kc2 {[%clk 0:00:02]}  Qe2+ {[%clk 0:00:07]} 44. Kb1 {[%clk 0:00:03]}  Qe4+ {[%clk 0:00:06]} 45. Ka2 {[%clk 0:00:03]}  Qf5 {[%clk 0:00:07]} 46. Qb6 {[%clk 0:00:03]}  Qf6 {[%clk 0:00:07]} 47. Qa5 {[%clk 0:00:02]}  h4 {[%clk 0:00:06]} 48. Qb4 {[%clk 0:00:03]}  Qh6 {[%clk 0:00:06]} 49. Qg4 {[%clk 0:00:03]}  h3 {[%clk 0:00:05]} 50. Qg3 {[%clk 0:00:03]}  Qh5 {[%clk 0:00:02]} 51. Qh2 {[%clk 0:00:02]}  Rg8 {[%clk 0:00:02]} 52. b4 {[%clk 0:00:01]}  Rg2 {[%clk 0:00:02]} 53. Qh1 {[%clk 0:00:02]}  h2 {[%clk 0:00:03]} 54. Qxg2 {[%clk 0:00:01]}  h1=Q {[%clk 0:00:03]} 55. Qf2 {[%clk 0:00:01]}  Q1h3 {[%clk 0:00:03]} 56. Qb6 {[%clk 0:00:02]}  Kh7 {[%clk 0:00:04]} 57. Qb7+ {[%clk 0:00:02]}  Kh6 {[%clk 0:00:04]} 58. Qb6+ {[%clk 0:00:03]}  Kg5 {[%clk 0:00:05]} 59. Qc5 {[%clk 0:00:03]}  Qf5 {[%clk 0:00:04]} 60. Qb6 {[%clk 0:00:03]}  Qhg6 {[%clk 0:00:04]} 61. Qd8+ {[%clk 0:00:03]}  Qgf6 {[%clk 0:00:04]} 62. Qd2+ {[%clk 0:00:03]}  Qf4 {[%clk 0:00:04]} 63. Qg2+ {[%clk 0:00:04]}  Kf5 {[%clk 0:00:04]} 64. Qh3+ {[%clk 0:00:04]}  Qg4 {[%clk 0:00:05]} 65. Qh7+ {[%clk 0:00:04]}  Qfg6 {[%clk 0:00:05]} 66. Qd7+ {[%clk 0:00:04]}  Kf4 {[%clk 0:00:05]} 67. Qd2+ {[%clk 0:00:04]}  Kf3 {[%clk 0:00:04]} 68. Qd1+ {[%clk 0:00:05]}  Kg3 {[%clk 0:00:05]} 69. Qe1+ {[%clk 0:00:05]}  Kf4 {[%clk 0:00:04]} 70. Qd2+ {[%clk 0:00:05]}  Kf5 {[%clk 0:00:05]} 71. Qd7+ {[%clk 0:00:05]}  Kf6 {[%clk 0:00:05]} 72. Qd6+ {[%clk 0:00:05]}  Qe6+ {[%clk 0:00:04]} 73. Qxe6+ {[%clk 0:00:05]}  Kxe6 {[%clk 0:00:05]} 74. c4 {[%clk 0:00:05]}  e4 {[%clk 0:00:06]} 75. cxb5 {[%clk 0:00:05]}  axb5 {[%clk 0:00:07]} 76. Kb3 {[%clk 0:00:06]}  e3 {[%clk 0:00:07]} 77. Ka2 {[%clk 0:00:06]}  Qe4 {[%clk 0:00:06]} 78. b3 {[%clk 0:00:07]}  e2 {[%clk 0:00:07]} 79. Ka3 {[%clk 0:00:08]}  e1=Q {[%clk 0:00:06]} 80. Ka2 {[%clk 0:00:09]}  Q1b1+ {[%clk 0:00:06]} 81. Ka3 {[%clk 0:00:10]}  Qa1# {[%clk 0:00:07]} 0-1


[Site "https://www.chess.com"]

[Event "Titled Tuesday Blitz November 29 Early 2022"]
[White "Manon-og, Ramon Jr."]
[Black "Balabayeva, Xeniya"]
[WhiteFideId "5200776"]
[BlackFideId "13719688"]
[WhiteElo "2335"]
[BlackElo "2041"]
[Result "1/2-1/2"]
[Round "04"]
[TimeControl "180+1"]
[Date "2022.11.30"]
[WhiteClock "0:00:20"]
[BlackClock "0:00:01"]

1. e4 {[%clk 0:02:56]}  e6 {[%clk 0:02:57]} 2. d4 {[%clk 0:02:56]}  d5 {[%clk 0:02:58]} 3. Nd2 {[%clk 0:02:56]}  Nf6 {[%clk 0:02:56]} 4. e5 {[%clk 0:02:55]}  Nfd7 {[%clk 0:02:56]} 5. Ngf3 {[%clk 0:02:54]}  c5 {[%clk 0:02:56]} 6. c3 {[%clk 0:02:55]}  Nc6 {[%clk 0:02:56]} 7. Bd3 {[%clk 0:02:54]}  Qb6 {[%clk 0:02:55]} 8. dxc5 {[%clk 0:02:52]}  Bxc5 {[%clk 0:02:44]} 9. Qe2 {[%clk 0:02:51]}  Qc7 {[%clk 0:02:17]} 10. Nb3 {[%clk 0:02:48]}  Be7 {[%clk 0:01:48]} 11. Bf4 {[%clk 0:02:47]}  a6 {[%clk 0:01:48]} 12. O-O {[%clk 0:02:45]}  h6 {[%clk 0:01:48]} 13. Rad1 {[%clk 0:02:45]}  g5 {[%clk 0:01:29]} 14. Bg3 {[%clk 0:02:44]}  h5 {[%clk 0:01:29]} 15. h4 {[%clk 0:02:39]}  gxh4 {[%clk 0:01:21]} 16. Nxh4 {[%clk 0:02:38]}  Ncxe5 {[%clk 0:01:07]} 17. Bc2 {[%clk 0:02:36]}  Qc4 {[%clk 0:00:42]} 18. Qxc4 {[%clk 0:02:22]}  Nxc4 {[%clk 0:00:41]} 19. Rfe1 {[%clk 0:02:02]}  Nxb2 {[%clk 0:00:23]} 20. Rd2 {[%clk 0:02:02]}  Nc4 {[%clk 0:00:23]} 21. Rde2 {[%clk 0:02:02]}  b6 {[%clk 0:00:17]} 22. Ng6 {[%clk 0:01:58]}  Rg8 {[%clk 0:00:15]} 23. Nxe7 {[%clk 0:01:55]}  Kxe7 {[%clk 0:00:15]} 24. Nd4 {[%clk 0:01:55]}  Bb7 {[%clk 0:00:15]} 25. Bh7 {[%clk 0:01:52]}  Rh8 {[%clk 0:00:13]} 26. Bd3 {[%clk 0:01:51]}  h4 {[%clk 0:00:12]} 27. Bh2 {[%clk 0:01:38]}  Rag8 {[%clk 0:00:12]} 28. Nf5+ {[%clk 0:01:31]}  Kd8 {[%clk 0:00:12]} 29. Nd4 {[%clk 0:01:05]}  e5 {[%clk 0:00:12]} 30. Nf5 {[%clk 0:00:59]}  f6 {[%clk 0:00:12]} 31. Bxc4 {[%clk 0:00:55]}  dxc4 {[%clk 0:00:12]} 32. f4 {[%clk 0:00:54]}  h3 {[%clk 0:00:10]} 33. g3 {[%clk 0:00:52]}  exf4 {[%clk 0:00:10]} 34. Nd6 {[%clk 0:00:51]}  Bf3 {[%clk 0:00:10]} 35. Nf7+ {[%clk 0:00:49]}  Kc7 {[%clk 0:00:09]} 36. Nxh8 {[%clk 0:00:42]}  Bxe2 {[%clk 0:00:09]} 37. Rxe2 {[%clk 0:00:41]}  Rxh8 {[%clk 0:00:09]} 38. gxf4 {[%clk 0:00:41]}  Rg8+ {[%clk 0:00:08]} 39. Kf1 {[%clk 0:00:42]}  Nc5 {[%clk 0:00:08]} 40. f5+ {[%clk 0:00:41]}  Kd7 {[%clk 0:00:08]} 41. Re3 {[%clk 0:00:40]}  Nd3 {[%clk 0:00:08]} 42. Rxh3 {[%clk 0:00:40]}  Rg5 {[%clk 0:00:07]} 43. Rh4 {[%clk 0:00:34]}  Rxf5+ {[%clk 0:00:07]} 44. Kg1 {[%clk 0:00:34]}  b5 {[%clk 0:00:06]} 45. Rh7+ {[%clk 0:00:34]}  Kc6 {[%clk 0:00:06]} 46. Ra7 {[%clk 0:00:30]}  Kb6 {[%clk 0:00:06]} 47. Rd7 {[%clk 0:00:30]}  Ne5 {[%clk 0:00:05]} 48. Re7 {[%clk 0:00:28]}  Nf3+ {[%clk 0:00:05]} 49. Kg2 {[%clk 0:00:29]}  Nxh2 {[%clk 0:00:05]} 50. Kxh2 {[%clk 0:00:28]}  Rf2+ {[%clk 0:00:06]} 51. Kg3 {[%clk 0:00:29]}  Rxa2 {[%clk 0:00:06]} 52. Re6+ {[%clk 0:00:30]}  Ka5 {[%clk 0:00:06]} 53. Rxf6 {[%clk 0:00:31]}  Rc2 {[%clk 0:00:06]} 54. Rf3 {[%clk 0:00:31]}  Ka4 {[%clk 0:00:06]} 55. Kf4 {[%clk 0:00:31]}  Kb3 {[%clk 0:00:06]} 56. Ke4 {[%clk 0:00:31]}  Rxc3 {[%clk 0:00:06]} 57. Rf1 {[%clk 0:00:31]}  Rc2 {[%clk 0:00:06]} 58. Kd4 {[%clk 0:00:31]}  a5 {[%clk 0:00:05]} 59. Kc5 {[%clk 0:00:31]}  b4 {[%clk 0:00:05]} 60. Kb5 {[%clk 0:00:31]}  c3 {[%clk 0:00:05]} 61. Kxa5 {[%clk 0:00:31]}  Re2 {[%clk 0:00:04]} 62. Rb1+ {[%clk 0:00:30]}  Rb2 {[%clk 0:00:04]} 63. Rf1 {[%clk 0:00:30]}  c2 {[%clk 0:00:04]} 64. Rf3+ {[%clk 0:00:27]}  Ka2 {[%clk 0:00:03]} 65. Rf1 {[%clk 0:00:23]}  Rb1 {[%clk 0:00:03]} 66. Rf2 {[%clk 0:00:24]}  b3 {[%clk 0:00:03]} 67. Ka4 {[%clk 0:00:24]}  Ka1 {[%clk 0:00:02]} 68. Ka3 {[%clk 0:00:20]}  c1=Q+ {[%clk 0:00:02]} 69. Kb4 {[%clk 0:00:20]}  Qe1+ {[%clk 0:00:01]} 70. Rd2 {[%clk 0:00:19]}  Qxd2+ {[%clk 0:00:01]} 71. Ka3 {[%clk 0:00:19]}  Qd6+ {[%clk 0:00:01]} 72. Ka4 {[%clk 0:00:20]} 1/2-1/2


[Site "https://www.chess.com"]

[Event "Titled Tuesday Blitz November 29 Early 2022"]
[White "Manukyan, Artyom"]
[Black "Mgeladze, Tamaz"]
[WhiteFideId "13305786"]
[BlackFideId "13601202"]
[WhiteElo "2078"]
[BlackElo "2288"]
[Result "1/2-1/2"]
[Round "04"]
[TimeControl "180+1"]
[Date "2022.11.30"]
[WhiteClock "0:00:08"]
[BlackClock "0:00:11"]

1. e4 {[%clk 0:03:00]}  c5 {[%clk 0:02:59]} 2. Nc3 {[%clk 0:02:59]}  g6 {[%clk 0:02:58]} 3. d4 {[%clk 0:02:58]}  cxd4 {[%clk 0:02:59]} 4. Qxd4 {[%clk 0:02:58]}  Nf6 {[%clk 0:03:00]} 5. Nf3 {[%clk 0:02:59]}  Nc6 {[%clk 0:03:00]} 6. Qa4 {[%clk 0:03:00]}  d6 {[%clk 0:03:01]} 7. e5 {[%clk 0:03:00]}  dxe5 {[%clk 0:03:02]} 8. Nxe5 {[%clk 0:03:01]}  Bg7 {[%clk 0:03:00]} 9. Bb5 {[%clk 0:03:00]}  O-O {[%clk 0:03:00]} 10. Nxc6 {[%clk 0:03:00]}  bxc6 {[%clk 0:03:01]} 11. Bxc6 {[%clk 0:03:01]}  Rb8 {[%clk 0:03:02]} 12. O-O {[%clk 0:03:00]}  Bb7 {[%clk 0:03:01]} 13. Bxb7 {[%clk 0:02:32]}  Rxb7 {[%clk 0:03:02]} 14. Rd1 {[%clk 0:02:28]}  Qb8 {[%clk 0:03:01]} 15. Nd5 {[%clk 0:02:21]}  Nxd5 {[%clk 0:02:58]} 16. Rxd5 {[%clk 0:02:22]}  Bxb2 {[%clk 0:02:45]} 17. Bxb2 {[%clk 0:02:11]}  Rxb2 {[%clk 0:02:46]} 18. Rad1 {[%clk 0:02:11]}  Rc8 {[%clk 0:02:38]} 19. Qa3 {[%clk 0:01:48]}  Rbxc2 {[%clk 0:02:23]} 20. Qxe7 {[%clk 0:01:45]}  Rc1 {[%clk 0:02:20]} 21. g3 {[%clk 0:01:42]}  Rxd1+ {[%clk 0:02:18]} 22. Rxd1 {[%clk 0:01:43]}  Re8 {[%clk 0:02:17]} 23. Qd7 {[%clk 0:01:40]}  a5 {[%clk 0:02:13]} 24. h4 {[%clk 0:01:37]}  h5 {[%clk 0:02:12]} 25. a4 {[%clk 0:01:33]}  Qe5 {[%clk 0:02:07]} 26. Qd5 {[%clk 0:01:25]}  Qe2 {[%clk 0:01:59]} 27. Rd4 {[%clk 0:01:16]}  Re5 {[%clk 0:01:55]} 28. Qd8+ {[%clk 0:01:11]}  Kg7 {[%clk 0:01:54]} 29. Rf4 {[%clk 0:01:10]}  Rf5 {[%clk 0:01:06]} 30. Rxf5 {[%clk 0:01:05]}  Qe1+ {[%clk 0:01:06]} 31. Kg2 {[%clk 0:00:53]}  gxf5 {[%clk 0:01:07]} 32. Qg5+ {[%clk 0:00:53]}  Kf8 {[%clk 0:01:04]} 33. Qxf5 {[%clk 0:00:53]}  Qb4 {[%clk 0:01:01]} 34. Qc2 {[%clk 0:00:42]}  Kg7 {[%clk 0:00:56]} 35. Qc6 {[%clk 0:00:40]}  Kf8 {[%clk 0:00:51]} 36. Qc8+ {[%clk 0:00:34]}  Ke7 {[%clk 0:00:51]} 37. Qc6 {[%clk 0:00:34]}  f5 {[%clk 0:00:43]} 38. Kf3 {[%clk 0:00:33]}  Qg4+ {[%clk 0:00:39]} 39. Ke3 {[%clk 0:00:28]}  f4+ {[%clk 0:00:32]} 40. gxf4 {[%clk 0:00:27]}  Qxh4 {[%clk 0:00:33]} 41. Qc7+ {[%clk 0:00:28]}  Ke8 {[%clk 0:00:30]} 42. Qxa5 {[%clk 0:00:25]}  Qh3+ {[%clk 0:00:26]} 43. f3 {[%clk 0:00:25]}  h4 {[%clk 0:00:25]} 44. Qe5+ {[%clk 0:00:24]}  Kf7 {[%clk 0:00:24]} 45. a5 {[%clk 0:00:22]}  Qh1 {[%clk 0:00:24]} 46. Qh5+ {[%clk 0:00:18]}  Kg7 {[%clk 0:00:24]} 47. Qg5+ {[%clk 0:00:18]}  Kh7 {[%clk 0:00:24]} 48. Qf5+ {[%clk 0:00:18]}  Kg7 {[%clk 0:00:25]} 49. Qg4+ {[%clk 0:00:18]}  Kh7 {[%clk 0:00:23]} 50. f5 {[%clk 0:00:17]}  h3 {[%clk 0:00:19]} 51. Qg6+ {[%clk 0:00:16]}  Kh8 {[%clk 0:00:19]} 52. f6 {[%clk 0:00:17]}  Qe1+ {[%clk 0:00:16]} 53. Kf4 {[%clk 0:00:16]}  Qd2+ {[%clk 0:00:15]} 54. Ke5 {[%clk 0:00:15]}  Qxa5+ {[%clk 0:00:14]} 55. Ke4 {[%clk 0:00:13]}  Qb4+ {[%clk 0:00:12]} 56. Kd5 {[%clk 0:00:11]}  Qb3+ {[%clk 0:00:11]} 57. Kd4 {[%clk 0:00:10]}  Qb2+ {[%clk 0:00:09]} 58. Kc5 {[%clk 0:00:10]}  Qc3+ {[%clk 0:00:09]} 59. Kd5 {[%clk 0:00:09]}  Qxf3+ {[%clk 0:00:09]} 60. Kd6 {[%clk 0:00:10]}  Qf4+ {[%clk 0:00:07]} 61. Ke7 {[%clk 0:00:10]}  Qe5+ {[%clk 0:00:07]} 62. Kd8 {[%clk 0:00:10]}  Qd6+ {[%clk 0:00:07]} 63. Kc8 {[%clk 0:00:10]}  Qe6+ {[%clk 0:00:07]} 64. Kd8 {[%clk 0:00:10]}  Qg8+ {[%clk 0:00:08]} 65. Qxg8+ {[%clk 0:00:09]}  Kxg8 {[%clk 0:00:08]} 66. Ke7 {[%clk 0:00:09]}  h2 {[%clk 0:00:08]} 67. f7+ {[%clk 0:00:10]}  Kh7 {[%clk 0:00:08]} 68. f8=Q {[%clk 0:00:08]}  h1=Q {[%clk 0:00:09]} 69. Qf7+ {[%clk 0:00:06]}  Kh6 {[%clk 0:00:10]} 70. Qf6+ {[%clk 0:00:06]}  Kh7 {[%clk 0:00:10]} 71. Qf7+ {[%clk 0:00:07]}  Kh6 {[%clk 0:00:11]} 72. Qf6+ {[%clk 0:00:06]}  Kh7 {[%clk 0:00:12]} 73. Kf8 {[%clk 0:00:06]}  Qa8+ {[%clk 0:00:11]} 74. Kf7 {[%clk 0:00:04]}  Qb7+ {[%clk 0:00:11]} 75. Ke8 {[%clk 0:00:03]}  Qc8+ {[%clk 0:00:11]} 76. Ke7 {[%clk 0:00:03]}  Qc7+ {[%clk 0:00:11]} 77. Ke6 {[%clk 0:00:04]}  Qc6+ {[%clk 0:00:11]} 78. Ke5 {[%clk 0:00:04]}  Qc3+ {[%clk 0:00:11]} 79. Ke6 {[%clk 0:00:05]}  Qc4+ {[%clk 0:00:11]} 80. Ke7 {[%clk 0:00:05]}  Qc5+ {[%clk 0:00:12]} 81. Qd6 {[%clk 0:00:05]}  Qa7+ {[%clk 0:00:11]} 82. Qd7 {[%clk 0:00:05]}  Qe3+ {[%clk 0:00:11]} 83. Kf8+ {[%clk 0:00:05]}  Kg6 {[%clk 0:00:09]} 84. Qg7+ {[%clk 0:00:05]}  Kf5 {[%clk 0:00:09]} 85. Qf7+ {[%clk 0:00:05]}  Kg4 {[%clk 0:00:09]} 86. Qg7+ {[%clk 0:00:06]}  Kh5 {[%clk 0:00:09]} 87. Qh7+ {[%clk 0:00:06]}  Kg5 {[%clk 0:00:09]} 88. Qg7+ {[%clk 0:00:06]}  Kh4 {[%clk 0:00:10]} 89. Qh7+ {[%clk 0:00:06]}  Kg5 {[%clk 0:00:09]} 90. Qg7+ {[%clk 0:00:07]}  Kh5 {[%clk 0:00:09]} 91. Qh7+ {[%clk 0:00:07]}  Qh6+ {[%clk 0:00:10]} 92. Qxh6+ {[%clk 0:00:08]}  Kxh6 {[%clk 0:00:11]} 1/2-1/2


[Site "https://www.chess.com"]

[Event "Titled Tuesday Blitz November 29 Early 2022"]
[White "Matveeva, Olga"]
[Black "Adel, Sara"]
[WhiteFideId "24107018"]
[BlackFideId "10616764"]
[WhiteElo "2055"]
[BlackElo "1994"]
[Result "1-0"]
[Round "04"]
[TimeControl "180+1"]
[Date "2022.11.30"]
[WhiteClock "0:00:46"]
[BlackClock "0:00:20"]

1. d4 {[%clk 0:03:00]}  Nf6 {[%clk 0:02:59]} 2. c4 {[%clk 0:03:01]}  g6 {[%clk 0:03:00]} 3. Nf3 {[%clk 0:03:01]}  Bg7 {[%clk 0:03:00]} 4. g3 {[%clk 0:03:01]}  d6 {[%clk 0:03:01]} 5. Bg2 {[%clk 0:03:01]}  O-O {[%clk 0:02:55]} 6. O-O {[%clk 0:03:02]}  Nc6 {[%clk 0:02:54]} 7. Nc3 {[%clk 0:03:01]}  e5 {[%clk 0:02:54]} 8. d5 {[%clk 0:03:01]}  Ne7 {[%clk 0:02:54]} 9. e4 {[%clk 0:03:01]}  Ne8 {[%clk 0:02:54]} 10. Ne1 {[%clk 0:02:56]}  f5 {[%clk 0:02:54]} 11. f4 {[%clk 0:02:52]}  Nf6 {[%clk 0:02:53]} 12. Nd3 {[%clk 0:02:50]}  fxe4 {[%clk 0:02:50]} 13. Nxe4 {[%clk 0:02:49]}  exf4 {[%clk 0:02:36]} 14. Nxf4 {[%clk 0:02:40]}  Nf5 {[%clk 0:02:29]} 15. Ng5 {[%clk 0:02:34]}  Bh6 {[%clk 0:01:43]} 16. Nge6 {[%clk 0:02:29]}  Bxe6 {[%clk 0:01:22]} 17. Nxe6 {[%clk 0:02:30]}  Ne3 {[%clk 0:01:19]} 18. Qd3 {[%clk 0:02:18]}  Qe7 {[%clk 0:01:14]} 19. Bxe3 {[%clk 0:02:17]}  Bxe3+ {[%clk 0:00:56]} 20. Qxe3 {[%clk 0:02:18]}  Ng4 {[%clk 0:00:57]} 21. Qd4 {[%clk 0:02:16]}  Rxf1+ {[%clk 0:00:54]} 22. Rxf1 {[%clk 0:02:17]}  Ne5 {[%clk 0:00:55]} 23. Qf4 {[%clk 0:02:03]}  c6 {[%clk 0:00:51]} 24. b3 {[%clk 0:02:00]}  cxd5 {[%clk 0:00:47]} 25. Bxd5 {[%clk 0:02:00]}  Kh8 {[%clk 0:00:47]} 26. Qf6+ {[%clk 0:01:52]}  Qxf6 {[%clk 0:00:44]} 27. Rxf6 {[%clk 0:01:53]}  Rc8 {[%clk 0:00:42]} 28. Rf8+ {[%clk 0:01:51]}  Rxf8 {[%clk 0:00:41]} 29. Nxf8 {[%clk 0:01:52]}  Kg7 {[%clk 0:00:42]} 30. Ne6+ {[%clk 0:01:52]}  Kf6 {[%clk 0:00:43]} 31. Nd4 {[%clk 0:01:46]}  b6 {[%clk 0:00:41]} 32. Kf2 {[%clk 0:01:43]}  Nd3+ {[%clk 0:00:41]} 33. Ke3 {[%clk 0:01:41]}  Nc1 {[%clk 0:00:42]} 34. a3 {[%clk 0:01:36]}  Ke5 {[%clk 0:00:42]} 35. Nc6+ {[%clk 0:01:33]}  Kf6 {[%clk 0:00:42]} 36. Nd4 {[%clk 0:01:26]}  Ke5 {[%clk 0:00:42]} 37. Bf3 {[%clk 0:01:25]}  g5 {[%clk 0:00:36]} 38. Bd1 {[%clk 0:01:25]}  h6 {[%clk 0:00:22]} 39. Nc6+ {[%clk 0:01:24]}  Ke6 {[%clk 0:00:22]} 40. Nxa7 {[%clk 0:01:24]}  d5 {[%clk 0:00:20]} 41. Nb5 {[%clk 0:01:17]}  dxc4 {[%clk 0:00:20]} 42. bxc4 {[%clk 0:01:18]}  Ke5 {[%clk 0:00:20]} 43. Nc3 {[%clk 0:01:16]}  Kd6 {[%clk 0:00:19]} 44. Kd2 {[%clk 0:01:16]}  Kc5 {[%clk 0:00:18]} 45. Kxc1 {[%clk 0:01:13]}  Kxc4 {[%clk 0:00:17]} 46. Ne4 {[%clk 0:01:13]}  b5 {[%clk 0:00:17]} 47. Be2+ {[%clk 0:01:11]}  Kd4 {[%clk 0:00:15]} 48. Nf6 {[%clk 0:01:11]}  Kc5 {[%clk 0:00:15]} 49. Ng8 {[%clk 0:01:09]}  h5 {[%clk 0:00:15]} 50. Bxh5 {[%clk 0:01:08]}  b4 {[%clk 0:00:16]} 51. axb4+ {[%clk 0:01:07]}  Kxb4 {[%clk 0:00:16]} 52. h4 {[%clk 0:01:07]}  Kc5 {[%clk 0:00:17]} 53. hxg5 {[%clk 0:01:07]}  Kd6 {[%clk 0:00:18]} 54. Nf6 {[%clk 0:01:05]}  Ke6 {[%clk 0:00:19]} 55. g4 {[%clk 0:01:04]}  Ke7 {[%clk 0:00:19]} 56. Kd2 {[%clk 0:01:03]}  Kf8 {[%clk 0:00:20]} 57. Ke3 {[%clk 0:01:03]}  Kg7 {[%clk 0:00:21]} 58. Kf4 {[%clk 0:01:03]}  Kh8 {[%clk 0:00:21]} 59. Kf5 {[%clk 0:01:03]}  Kg7 {[%clk 0:00:22]} 60. g6 {[%clk 0:01:02]}  Kh8 {[%clk 0:00:23]} 61. Ne8 {[%clk 0:00:58]}  Kg8 {[%clk 0:00:23]} 62. g7 {[%clk 0:00:56]}  Kh7 {[%clk 0:00:21]} 63. Ke6 {[%clk 0:00:48]}  Kg8 {[%clk 0:00:20]} 64. Bf7+ {[%clk 0:00:47]}  Kh7 {[%clk 0:00:19]} 65. g8=Q+ {[%clk 0:00:47]}  Kh6 {[%clk 0:00:20]} 66. Qg6# {[%clk 0:00:46]} 1-0


[Site "https://www.chess.com"]

[Event "Titled Tuesday Blitz November 29 Early 2022"]
[White "Mitrovic, Darko R"]
[Black "Kvaloy, Aksel Bu"]
[WhiteFideId "927023"]
[BlackFideId "1528815"]
[WhiteElo "2150"]
[BlackElo "2184"]
[Result "0-1"]
[Round "04"]
[TimeControl "180+1"]
[Date "2022.11.30"]
[WhiteClock "0:00:02"]
[BlackClock "0:00:51"]

1. d4 {[%clk 0:03:00]}  Nf6 {[%clk 0:02:59]} 2. c4 {[%clk 0:02:59]}  e6 {[%clk 0:02:59]} 3. Nf3 {[%clk 0:02:59]}  d5 {[%clk 0:03:00]} 4. g3 {[%clk 0:02:58]}  dxc4 {[%clk 0:02:58]} 5. Qa4+ {[%clk 0:02:54]}  Nbd7 {[%clk 0:02:57]} 6. Qxc4 {[%clk 0:02:53]}  a6 {[%clk 0:02:57]} 7. Bg2 {[%clk 0:02:53]}  b5 {[%clk 0:02:57]} 8. Qc2 {[%clk 0:02:49]}  Bb7 {[%clk 0:02:57]} 9. O-O {[%clk 0:02:48]}  c5 {[%clk 0:02:53]} 10. a4 {[%clk 0:02:29]}  b4 {[%clk 0:02:44]} 11. Bg5 {[%clk 0:02:15]}  Rc8 {[%clk 0:02:41]} 12. dxc5 {[%clk 0:01:52]}  Bxc5 {[%clk 0:02:31]} 13. Qd1 {[%clk 0:01:44]}  O-O {[%clk 0:02:30]} 14. Nbd2 {[%clk 0:01:42]}  Bd5 {[%clk 0:02:10]} 15. Nb3 {[%clk 0:01:37]}  Be7 {[%clk 0:01:56]} 16. Nfd4 {[%clk 0:01:24]}  Bxg2 {[%clk 0:01:53]} 17. Kxg2 {[%clk 0:01:23]}  Nb6 {[%clk 0:01:53]} 18. a5 {[%clk 0:01:10]}  Nc4 {[%clk 0:01:48]} 19. Ra2 {[%clk 0:00:56]}  Qd5+ {[%clk 0:01:45]} 20. Nf3 {[%clk 0:00:53]}  Qb7 {[%clk 0:01:17]} 21. Qb1 {[%clk 0:00:35]}  Rfd8 {[%clk 0:01:13]} 22. Kg1 {[%clk 0:00:27]}  h6 {[%clk 0:01:13]} 23. Bc1 {[%clk 0:00:19]}  Ne4 {[%clk 0:01:07]} 24. Ne1 {[%clk 0:00:07]}  Ng5 {[%clk 0:00:55]} 25. Bxg5 {[%clk 0:00:05]}  Bxg5 {[%clk 0:00:54]} 26. Nd3 {[%clk 0:00:04]}  Bf6 {[%clk 0:00:51]} 27. Rd1 {[%clk 0:00:02]}  Qb5 {[%clk 0:00:51]} 0-1


[Site "https://www.chess.com"]

[Event "Titled Tuesday Blitz November 29 Early 2022"]
[White "Munkhgal, Gombosuren"]
[Black "Lehtosaari, Mauri"]
[WhiteFideId "4901266"]
[BlackFideId "501999"]
[WhiteElo "2576"]
[BlackElo "2499"]
[Result "0-1"]
[Round "04"]
[TimeControl "180+1"]
[Date "2022.11.30"]
[WhiteClock "0:01:33"]
[BlackClock "0:01:36"]

1. d4 {[%clk 0:03:00]}  d5 {[%clk 0:02:58]} 2. Nf3 {[%clk 0:02:59]}  Nf6 {[%clk 0:02:58]} 3. Bf4 {[%clk 0:03:00]}  c5 {[%clk 0:02:56]} 4. e3 {[%clk 0:03:00]}  Nc6 {[%clk 0:02:55]} 5. c3 {[%clk 0:03:01]}  Qb6 {[%clk 0:02:54]} 6. Qb3 {[%clk 0:03:01]}  c4 {[%clk 0:02:53]} 7. Qc2 {[%clk 0:03:02]}  Bf5 {[%clk 0:02:47]} 8. Qc1 {[%clk 0:03:02]}  e6 {[%clk 0:02:46]} 9. Nbd2 {[%clk 0:03:03]}  h6 {[%clk 0:02:47]} 10. h3 {[%clk 0:03:03]}  Be7 {[%clk 0:02:46]} 11. Ne5 {[%clk 0:03:03]}  O-O {[%clk 0:02:43]} 12. Be2 {[%clk 0:03:02]}  Qd8 {[%clk 0:02:37]} 13. b3 {[%clk 0:03:02]}  cxb3 {[%clk 0:02:14]} 14. axb3 {[%clk 0:03:01]}  a6 {[%clk 0:02:12]} 15. Nxc6 {[%clk 0:02:57]}  bxc6 {[%clk 0:02:13]} 16. Rxa6 {[%clk 0:02:58]}  Rxa6 {[%clk 0:02:08]} 17. Bxa6 {[%clk 0:02:59]}  Qa5 {[%clk 0:02:08]} 18. Be2 {[%clk 0:02:58]}  Ne4 {[%clk 0:02:01]} 19. Nxe4 {[%clk 0:02:57]}  Bxe4 {[%clk 0:02:02]} 20. O-O {[%clk 0:02:57]}  Qa2 {[%clk 0:02:00]} 21. Bd1 {[%clk 0:02:52]}  Ba3 {[%clk 0:01:58]} 22. Qxa3 {[%clk 0:01:51]}  Qxa3 {[%clk 0:01:58]} 23. c4 {[%clk 0:01:50]}  dxc4 {[%clk 0:01:54]} 24. bxc4 {[%clk 0:01:50]}  Bd3 {[%clk 0:01:54]} 25. Re1 {[%clk 0:01:51]}  Bxc4 {[%clk 0:01:54]} 26. Bf3 {[%clk 0:01:50]}  Bd5 {[%clk 0:01:54]} 27. e4 {[%clk 0:01:50]}  Qb4 {[%clk 0:01:48]} 28. Rc1 {[%clk 0:01:47]}  Bxe4 {[%clk 0:01:39]} 29. Bxe4 {[%clk 0:01:45]}  Qxd4 {[%clk 0:01:39]} 30. Re1 {[%clk 0:01:33]}  f5 {[%clk 0:01:36]} 0-1


[Site "https://www.chess.com"]